[Event "Titled Tuesday Blitz August 22 Early 2023"]
[White "Shimanov, Aleksandr"]
[Black "Yedidia, Daniel"]
[WhiteFideId "4198603"]
[BlackFideId "30905907"]
[WhiteElo "2924"]
[BlackElo "2499"]
[Result "1/2-1/2"]
[Round "7"]
[TimeControl "180+1"]
[Date "2023.08.22"]
[WhiteClock "0:00:08"]
[BlackClock "0:00:05"]
[Board "91"]

1. e4 {[%clk 0:03:00]}  e5 {[%clk 0:03:00]} 2. Nf3 {[%clk 0:03:00]}  Nc6 {[%clk 0:03:00]} 3. Bc4 {[%clk 0:02:51]}  Nf6 {[%clk 0:03:00]} 4. d4 {[%clk 0:02:41]}  exd4 {[%clk 0:02:57]} 5. O-O {[%clk 0:02:41]}  Nxe4 {[%clk 0:02:54]} 6. Nc3 {[%clk 0:02:41]}  Nxc3 {[%clk 0:02:45]} 7. bxc3 {[%clk 0:02:40]}  d5 {[%clk 0:02:42]} 8. Bb5 {[%clk 0:02:39]}  Be7 {[%clk 0:02:42]} 9. Nxd4 {[%clk 0:02:36]}  Bd7 {[%clk 0:02:42]} 10. Bd3 {[%clk 0:02:36]}  Ne5 {[%clk 0:02:39]} 11. Be2 {[%clk 0:02:33]}  O-O {[%clk 0:02:38]} 12. Bf4 {[%clk 0:02:33]}  Ng6 {[%clk 0:02:36]} 13. Bg3 {[%clk 0:02:33]}  c6 {[%clk 0:02:32]} 14. c4 {[%clk 0:02:33]}  dxc4 {[%clk 0:02:29]} 15. Bxc4 {[%clk 0:02:34]}  Bf6 {[%clk 0:02:29]} 16. c3 {[%clk 0:02:34]}  Ne5 {[%clk 0:02:25]} 17. Bb3 {[%clk 0:02:34]}  Bg4 {[%clk 0:02:20]} 18. Qc2 {[%clk 0:02:33]}  Bh5 {[%clk 0:02:17]} 19. Qb2 {[%clk 0:02:01]}  Qb6 {[%clk 0:02:10]} 20. a4 {[%clk 0:01:48]}  Nd3 {[%clk 0:01:49]} 21. Qa2 {[%clk 0:01:44]}  Qc5 {[%clk 0:01:25]} 22. Qd2 {[%clk 0:01:36]}  Bg6 {[%clk 0:01:19]} 23. Bc2 {[%clk 0:01:30]}  Ne5 {[%clk 0:01:17]} 24. Bb3 {[%clk 0:01:27]}  Nc4 {[%clk 0:01:13]} 25. Qa2 {[%clk 0:01:26]}  Na5 {[%clk 0:01:07]} 26. Rac1 {[%clk 0:01:22]}  Nxb3 {[%clk 0:01:06]} 27. Qxb3 {[%clk 0:01:22]}  b6 {[%clk 0:01:02]} 28. Rfe1 {[%clk 0:01:11]}  Rfe8 {[%clk 0:01:00]} 29. h3 {[%clk 0:01:10]}  h6 {[%clk 0:00:56]} 30. Bf4 {[%clk 0:01:07]}  Rad8 {[%clk 0:00:43]} 31. Be3 {[%clk 0:01:07]}  Qd6 {[%clk 0:00:36]} 32. Red1 {[%clk 0:01:05]}  Qc7 {[%clk 0:00:33]} 33. Qc4 {[%clk 0:01:05]}  Be4 {[%clk 0:00:32]} 34. Rd2 {[%clk 0:00:39]}  Qb7 {[%clk 0:00:10]} 35. Rcd1 {[%clk 0:00:38]}  c5 {[%clk 0:00:10]} 36. Nb5 {[%clk 0:00:38]}  Rxd2 {[%clk 0:00:09]} 37. Rxd2 {[%clk 0:00:39]}  Be5 {[%clk 0:00:04]} 38. Qf1 {[%clk 0:00:33]}  Bb8 {[%clk 0:00:03]} 39. Nd6 {[%clk 0:00:29]}  Bxd6 {[%clk 0:00:03]} 40. Rxd6 {[%clk 0:00:30]}  Qe7 {[%clk 0:00:04]} 41. Qd1 {[%clk 0:00:30]}  Qe5 {[%clk 0:00:02]} 42. Qd2 {[%clk 0:00:29]}  Qf5 {[%clk 0:00:02]} 43. Rd7 {[%clk 0:00:28]}  Qg6 {[%clk 0:00:02]} 44. g4 {[%clk 0:00:27]}  Qf6 {[%clk 0:00:01]} 45. Bf4 {[%clk 0:00:26]}  Bg6 {[%clk 0:00:02]} 46. Kh2 {[%clk 0:00:23]}  Qe6 {[%clk 0:00:02]} 47. Bg3 {[%clk 0:00:20]}  Be4 {[%clk 0:00:03]} 48. Rd6 {[%clk 0:00:20]}  Qe7 {[%clk 0:00:03]} 49. Rd7 {[%clk 0:00:20]}  Qe6 {[%clk 0:00:03]} 50. Rxa7 {[%clk 0:00:18]}  Bc6 {[%clk 0:00:04]} 51. f3 {[%clk 0:00:12]}  Bxf3 {[%clk 0:00:03]} 52. Rd7 {[%clk 0:00:13]}  Bc6 {[%clk 0:00:03]} 53. Rd8 {[%clk 0:00:13]}  Rxd8 {[%clk 0:00:03]} 54. Qxd8+ {[%clk 0:00:13]}  Kh7 {[%clk 0:00:03]} 55. Qd3+ {[%clk 0:00:14]}  Be4 {[%clk 0:00:04]} 56. Qe3 {[%clk 0:00:14]}  Bd5 {[%clk 0:00:04]} 57. Qxe6 {[%clk 0:00:13]}  Bxe6 {[%clk 0:00:05]} 58. Bc7 {[%clk 0:00:14]}  Bb3 {[%clk 0:00:05]} 59. Bxb6 {[%clk 0:00:14]}  Bxa4 {[%clk 0:00:06]} 60. Bxc5 {[%clk 0:00:15]}  Bb3 {[%clk 0:00:06]} 61. Kg3 {[%clk 0:00:15]}  Kg6 {[%clk 0:00:07]} 62. h4 {[%clk 0:00:15]}  Kf6 {[%clk 0:00:08]} 63. Bd4+ {[%clk 0:00:15]}  Kg6 {[%clk 0:00:07]} 64. h5+ {[%clk 0:00:15]}  Kh7 {[%clk 0:00:06]} 65. Kf4 {[%clk 0:00:16]}  Bd1 {[%clk 0:00:05]} 66. c4 {[%clk 0:00:15]}  Ba4 {[%clk 0:00:05]} 67. c5 {[%clk 0:00:15]}  Bd7 {[%clk 0:00:05]} 68. Bc3 {[%clk 0:00:12]}  g6 {[%clk 0:00:06]} 69. Bf6 {[%clk 0:00:11]}  Kg8 {[%clk 0:00:05]} 70. Kg3 {[%clk 0:00:09]}  Kf8 {[%clk 0:00:04]} 71. g5 {[%clk 0:00:08]}  hxg5 {[%clk 0:00:03]} 72. h6 {[%clk 0:00:09]}  Kg8 {[%clk 0:00:04]} 73. Bxg5 {[%clk 0:00:09]}  Kh7 {[%clk 0:00:04]} 74. Kh4 {[%clk 0:00:04]}  f6 {[%clk 0:00:04]} 75. Be3 {[%clk 0:00:02]}  g5+ {[%clk 0:00:03]} 76. Bxg5 {[%clk 0:00:01]}  fxg5+ {[%clk 0:00:03]} 77. Kxg5 {[%clk 0:00:02]}  Bc6 {[%clk 0:00:04]} 78. Kh5 {[%clk 0:00:02]}  Bd5 {[%clk 0:00:04]} 79. Kg5 {[%clk 0:00:03]}  Bc6 {[%clk 0:00:04]} 80. Kf6 {[%clk 0:00:04]}  Kxh6 {[%clk 0:00:05]} 81. Ke5 {[%clk 0:00:05]}  Bg2 {[%clk 0:00:05]} 82. Kd6 {[%clk 0:00:05]}  Kg5 {[%clk 0:00:06]} 83. Ke6 {[%clk 0:00:06]}  Kf4 {[%clk 0:00:06]} 84. Kf6 {[%clk 0:00:06]}  Ba8 {[%clk 0:00:05]} 85. Ke6 {[%clk 0:00:06]}  Ke4 {[%clk 0:00:05]} 86. Kd6 {[%clk 0:00:07]}  Kd4 {[%clk 0:00:05]} 87. c6 {[%clk 0:00:08]}  Bxc6 {[%clk 0:00:05]} 1/2-1/2


[Site "https://www.chess.com"]

[Event "Titled Tuesday Blitz August 22 Early 2023"]
[White "Morefield, Jason"]
[Black "Itkis, Boris"]
[WhiteFideId "30920825"]
[BlackFideId "1209167"]
[WhiteElo "2691"]
[BlackElo "2486"]
[Result "1-0"]
[Round "7"]
[TimeControl "180+1"]
[Date "2023.08.22"]
[WhiteClock "0:00:08"]
[BlackClock "0:00:10"]
[Board "96"]

1. e4 {[%clk 0:03:00]}  e6 {[%clk 0:02:59]} 2. d4 {[%clk 0:02:59]}  d5 {[%clk 0:03:00]} 3. Nc3 {[%clk 0:02:59]}  Bb4 {[%clk 0:02:59]} 4. e5 {[%clk 0:02:58]}  c5 {[%clk 0:02:59]} 5. Bd2 {[%clk 0:02:58]}  Ne7 {[%clk 0:02:54]} 6. Nb5 {[%clk 0:02:56]}  Bxd2+ {[%clk 0:02:52]} 7. Qxd2 {[%clk 0:02:57]}  O-O {[%clk 0:02:52]} 8. f4 {[%clk 0:02:55]}  Nbc6 {[%clk 0:02:51]} 9. Nf3 {[%clk 0:02:51]}  cxd4 {[%clk 0:02:51]} 10. Bd3 {[%clk 0:02:50]}  f6 {[%clk 0:02:50]} 11. O-O {[%clk 0:02:50]}  fxe5 {[%clk 0:02:50]} 12. fxe5 {[%clk 0:02:50]}  Rxf3 {[%clk 0:02:50]} 13. Rxf3 {[%clk 0:02:39]}  Nxe5 {[%clk 0:02:50]} 14. Rh3 {[%clk 0:02:40]}  Nxd3 {[%clk 0:02:50]} 15. Qxd3 {[%clk 0:02:39]}  Ng6 {[%clk 0:02:47]} 16. Rf1 {[%clk 0:02:17]}  e5 {[%clk 0:02:44]} 17. Rg3 {[%clk 0:02:12]}  Bd7 {[%clk 0:02:30]} 18. Nd6 {[%clk 0:01:52]}  Be8 {[%clk 0:02:08]} 19. Nf5 {[%clk 0:01:32]}  a6 {[%clk 0:02:05]} 20. h4 {[%clk 0:01:22]}  Bb5 {[%clk 0:02:03]} 21. Qf3 {[%clk 0:01:13]}  Bxf1 {[%clk 0:02:01]} 22. h5 {[%clk 0:01:09]}  Nf4 {[%clk 0:00:51]} 23. Rxg7+ {[%clk 0:00:53]}  Kh8 {[%clk 0:00:52]} 24. Kxf1 {[%clk 0:00:21]}  Qf6 {[%clk 0:00:51]} 25. g4 {[%clk 0:00:18]}  Rg8 {[%clk 0:00:45]} 26. Rxb7 {[%clk 0:00:15]}  a5 {[%clk 0:00:39]} 27. Ke1 {[%clk 0:00:14]}  Qc6 {[%clk 0:00:31]} 28. Qb3 {[%clk 0:00:08]}  a4 {[%clk 0:00:13]} 29. Qb4 {[%clk 0:00:07]}  Qxc2 {[%clk 0:00:11]} 30. Rxh7+ {[%clk 0:00:07]}  Kxh7 {[%clk 0:00:11]} 31. Qe7+ {[%clk 0:00:08]}  Kh8 {[%clk 0:00:09]} 32. Qf6+ {[%clk 0:00:08]}  Kh7 {[%clk 0:00:10]} 33. Qh6# {[%clk 0:00:08]} 1-0


[Site "https://www.chess.com"]

[Event "Titled Tuesday Blitz August 22 Early 2023"]
[White "Mrithyunjay Mahadevan"]
[Black "Piesik, Piotr"]
[WhiteFideId "45003521"]
[BlackFideId "1136194"]
[WhiteElo "2481"]
[BlackElo "2651"]
[Result "0-1"]
[Round "7"]
[TimeControl "180+1"]
[Date "2023.08.22"]
[WhiteClock "0:01:34"]
[BlackClock "0:00:38"]
[Board "97"]

1. Nf3 {[%clk 0:03:00]}  g6 {[%clk 0:02:59]} 2. e4 {[%clk 0:02:59]}  Bg7 {[%clk 0:02:59]} 3. d4 {[%clk 0:02:59]}  c6 {[%clk 0:03:00]} 4. Nc3 {[%clk 0:02:58]}  d6 {[%clk 0:03:00]} 5. Bd3 {[%clk 0:02:57]}  Nf6 {[%clk 0:02:59]} 6. h3 {[%clk 0:02:56]}  O-O {[%clk 0:03:00]} 7. Be3 {[%clk 0:02:56]}  Nbd7 {[%clk 0:02:59]} 8. Qe2 {[%clk 0:02:53]}  e5 {[%clk 0:02:59]} 9. O-O-O {[%clk 0:02:52]}  b5 {[%clk 0:02:55]} 10. g4 {[%clk 0:02:46]}  b4 {[%clk 0:02:54]} 11. Nb1 {[%clk 0:02:46]}  Qa5 {[%clk 0:02:52]} 12. dxe5 {[%clk 0:02:46]}  dxe5 {[%clk 0:02:44]} 13. g5 {[%clk 0:02:46]}  Nh5 {[%clk 0:02:43]} 14. Bc4 {[%clk 0:02:45]}  Nc5 {[%clk 0:02:40]} 15. Nfd2 {[%clk 0:02:40]}  Nf4 {[%clk 0:02:34]} 16. Bxf4 {[%clk 0:02:35]}  exf4 {[%clk 0:02:34]} 17. Qf3 {[%clk 0:02:30]}  Be6 {[%clk 0:02:24]} 18. Bxe6 {[%clk 0:02:27]}  Nxe6 {[%clk 0:02:22]} 19. Qb3 {[%clk 0:02:24]}  Nd4 {[%clk 0:02:17]} 20. Qc4 {[%clk 0:02:22]}  Qxa2 {[%clk 0:02:13]} 21. Rde1 {[%clk 0:02:19]}  Qa1 {[%clk 0:01:58]} 22. Qxb4 {[%clk 0:02:15]}  Qa6 {[%clk 0:01:05]} 23. Qa3 {[%clk 0:02:09]}  Qb5 {[%clk 0:01:00]} 24. Nc3 {[%clk 0:02:08]}  Qxg5 {[%clk 0:01:00]} 25. h4 {[%clk 0:02:04]}  Qh5 {[%clk 0:00:57]} 26. Reg1 {[%clk 0:02:01]}  h6 {[%clk 0:00:47]} 27. Qd6 {[%clk 0:01:59]}  Rad8 {[%clk 0:00:43]} 28. Qxf4 {[%clk 0:01:57]}  Qc5 {[%clk 0:00:38]} 29. h5 {[%clk 0:01:51]}  Qxc3 {[%clk 0:00:38]} 30. bxc3 {[%clk 0:01:34]}  Ne2+ {[%clk 0:00:38]} 0-1


[Site "https://www.chess.com"]

[Event "Titled Tuesday Blitz August 22 Early 2023"]
[White "Castellanos Villela, Alejandro"]
[Black "Gavilan Diaz, Mario"]
[WhiteFideId "3446379"]
[BlackFideId "2260905"]
[WhiteElo "2648"]
[BlackElo "2480"]
[Result "0-1"]
[Round "7"]
[TimeControl "180+1"]
[Date "2023.08.22"]
[WhiteClock "0:00:21"]
[BlackClock "0:00:58"]
[Board "98"]

1. e4 {[%clk 0:03:00]}  b6 {[%clk 0:03:00]} 2. d4 {[%clk 0:03:00]}  Bb7 {[%clk 0:03:00]} 3. Bd3 {[%clk 0:03:00]}  e6 {[%clk 0:03:00]} 4. Nf3 {[%clk 0:02:58]}  c5 {[%clk 0:03:00]} 5. c3 {[%clk 0:02:57]}  Nf6 {[%clk 0:03:01]} 6. Qe2 {[%clk 0:02:56]}  d5 {[%clk 0:03:01]} 7. e5 {[%clk 0:02:55]}  Ne4 {[%clk 0:03:01]} 8. Nbd2 {[%clk 0:02:55]}  Nxd2 {[%clk 0:03:01]} 9. Bxd2 {[%clk 0:02:56]}  Nc6 {[%clk 0:02:59]} 10. O-O {[%clk 0:02:55]}  Be7 {[%clk 0:02:59]} 11. Rfe1 {[%clk 0:02:52]}  O-O {[%clk 0:02:59]} 12. h4 {[%clk 0:02:49]}  Bxh4 {[%clk 0:02:51]} 13. Nxh4 {[%clk 0:02:48]}  Qxh4 {[%clk 0:02:50]} 14. g3 {[%clk 0:02:49]}  Qh3 {[%clk 0:02:39]} 15. Qe3 {[%clk 0:02:37]}  cxd4 {[%clk 0:02:36]} 16. cxd4 {[%clk 0:02:38]}  f6 {[%clk 0:02:28]} 17. exf6 {[%clk 0:02:18]}  Rxf6 {[%clk 0:02:27]} 18. Bf1 {[%clk 0:02:14]}  Qh5 {[%clk 0:02:19]} 19. Kg2 {[%clk 0:02:09]}  Raf8 {[%clk 0:02:16]} 20. f4 {[%clk 0:02:06]}  e5 {[%clk 0:02:03]} 21. dxe5 {[%clk 0:01:48]}  d4 {[%clk 0:01:53]} 22. Bc4+ {[%clk 0:01:29]}  Kh8 {[%clk 0:01:48]} 23. Qe4 {[%clk 0:01:05]}  Nxe5 {[%clk 0:01:41]} 24. Qxb7 {[%clk 0:00:41]}  Nxc4 {[%clk 0:01:41]} 25. Bb4 {[%clk 0:00:33]}  Ne3+ {[%clk 0:01:04]} 26. Rxe3 {[%clk 0:00:31]}  dxe3 {[%clk 0:01:05]} 27. Bxf8 {[%clk 0:00:32]}  Qe2+ {[%clk 0:01:02]} 28. Kg1 {[%clk 0:00:21]}  Qf2+ {[%clk 0:00:58]} 0-1


[Site "https://www.chess.com"]

[Event "Titled Tuesday Blitz August 22 Early 2023"]
[White "Pax-Pramana"]
[Black "Eynullayev, Atilla"]
[BlackFideId "13413570"]
[WhiteElo "2474"]
[BlackElo "2641"]
[Result "1-0"]
[Round "7"]
[TimeControl "180+1"]
[Date "2023.08.22"]
[WhiteClock "0:00:13"]
[BlackClock "0:00:09"]
[Board "100"]

1. e4 {[%clk 0:03:00]}  c5 {[%clk 0:03:00]} 2. Nf3 {[%clk 0:02:59]}  d6 {[%clk 0:03:01]} 3. b3 {[%clk 0:02:57]}  g6 {[%clk 0:02:58]} 4. Bb2 {[%clk 0:02:57]}  e5 {[%clk 0:02:59]} 5. c3 {[%clk 0:02:52]}  Nf6 {[%clk 0:02:59]} 6. d4 {[%clk 0:02:53]}  Nxe4 {[%clk 0:02:55]} 7. dxe5 {[%clk 0:02:51]}  Bg7 {[%clk 0:02:49]} 8. Qd5 {[%clk 0:02:47]}  Ng5 {[%clk 0:02:41]} 9. Bb5+ {[%clk 0:01:34]}  Nd7 {[%clk 0:02:40]} 10. Qxd6 {[%clk 0:01:26]}  Nxf3+ {[%clk 0:02:22]} 11. gxf3 {[%clk 0:01:27]}  Qe7 {[%clk 0:02:23]} 12. Qxe7+ {[%clk 0:01:24]}  Kxe7 {[%clk 0:02:23]} 13. f4 {[%clk 0:01:24]}  f6 {[%clk 0:02:24]} 14. Bxd7 {[%clk 0:01:18]}  Bxd7 {[%clk 0:02:23]} 15. c4 {[%clk 0:01:18]}  fxe5 {[%clk 0:02:23]} 16. Bxe5 {[%clk 0:01:18]}  Kf7 {[%clk 0:02:12]} 17. Nc3 {[%clk 0:01:12]}  Rhe8 {[%clk 0:02:12]} 18. O-O-O {[%clk 0:01:12]}  Bc6 {[%clk 0:02:07]} 19. Rhe1 {[%clk 0:01:12]}  Rad8 {[%clk 0:01:27]} 20. Nd5 {[%clk 0:00:58]}  Bf8 {[%clk 0:00:41]} 21. Nf6 {[%clk 0:00:50]}  Rxd1+ {[%clk 0:00:41]} 22. Rxd1 {[%clk 0:00:50]}  Re7 {[%clk 0:00:38]} 23. Nxh7 {[%clk 0:00:48]}  Bh6 {[%clk 0:00:39]} 24. Kb2 {[%clk 0:00:31]}  Rd7 {[%clk 0:00:18]} 25. Rxd7+ {[%clk 0:00:27]}  Bxd7 {[%clk 0:00:19]} 26. Nf6 {[%clk 0:00:28]}  Bc6 {[%clk 0:00:19]} 27. Nd5 {[%clk 0:00:26]}  Ke6 {[%clk 0:00:17]} 28. Ne3 {[%clk 0:00:21]}  Be4 {[%clk 0:00:14]} 29. Bb8 {[%clk 0:00:20]}  a6 {[%clk 0:00:14]} 30. Ng4 {[%clk 0:00:15]}  Bg7+ {[%clk 0:00:13]} 31. Be5 {[%clk 0:00:15]}  Bf8 {[%clk 0:00:13]} 32. Nf6 {[%clk 0:00:13]}  Be7 {[%clk 0:00:09]} 33. Nxe4 {[%clk 0:00:13]} 1-0


[Site "https://www.chess.com"]

[Event "Titled Tuesday Blitz August 22 Early 2023"]
[White "HamedWafa4"]
[Black "Seletsky, Grigory"]
[BlackFideId "14112191"]
[WhiteElo "2617"]
[BlackElo "2470"]
[Result "1-0"]
[Round "7"]
[TimeControl "180+1"]
[Date "2023.08.22"]
[WhiteClock "0:00:26"]
[BlackClock "0:00:10"]
[Board "101"]

1. e4 {[%clk 0:03:00]}  e6 {[%clk 0:02:59]} 2. d4 {[%clk 0:03:00]}  d5 {[%clk 0:02:59]} 3. e5 {[%clk 0:03:00]}  c5 {[%clk 0:02:59]} 4. c3 {[%clk 0:03:00]}  Nc6 {[%clk 0:02:59]} 5. Nf3 {[%clk 0:03:01]}  Bd7 {[%clk 0:03:00]} 6. Be2 {[%clk 0:03:01]}  Rc8 {[%clk 0:03:00]} 7. O-O {[%clk 0:03:01]}  cxd4 {[%clk 0:03:00]} 8. cxd4 {[%clk 0:03:02]}  Nge7 {[%clk 0:02:59]} 9. Na3 {[%clk 0:03:02]}  Nf5 {[%clk 0:03:00]} 10. Nc2 {[%clk 0:03:02]}  h5 {[%clk 0:03:00]} 11. Bd3 {[%clk 0:02:59]}  Be7 {[%clk 0:02:59]} 12. a3 {[%clk 0:02:54]}  g6 {[%clk 0:02:57]} 13. b4 {[%clk 0:02:53]}  a6 {[%clk 0:02:57]} 14. h3 {[%clk 0:02:47]}  Kf8 {[%clk 0:02:56]} 15. Bxf5 {[%clk 0:02:25]}  exf5 {[%clk 0:02:54]} 16. Re1 {[%clk 0:02:18]}  Be6 {[%clk 0:02:54]} 17. Rb1 {[%clk 0:01:57]}  Kg7 {[%clk 0:02:50]} 18. Na1 {[%clk 0:01:54]}  Na7 {[%clk 0:02:42]} 19. a4 {[%clk 0:01:46]}  Rc4 {[%clk 0:02:37]} 20. Bd2 {[%clk 0:01:39]}  g5 {[%clk 0:02:33]} 21. Nb3 {[%clk 0:01:30]}  g4 {[%clk 0:02:29]} 22. Nh2 {[%clk 0:01:31]}  Bxb4 {[%clk 0:02:17]} 23. Bxb4 {[%clk 0:01:30]}  Rxb4 {[%clk 0:02:17]} 24. Nc5 {[%clk 0:01:30]}  Rxb1 {[%clk 0:02:08]} 25. Qxb1 {[%clk 0:01:31]}  Qe7 {[%clk 0:01:31]} 26. h4 {[%clk 0:01:30]}  Nc6 {[%clk 0:01:30]} 27. Rd1 {[%clk 0:01:23]}  Na5 {[%clk 0:01:21]} 28. Nf1 {[%clk 0:01:16]}  Rc8 {[%clk 0:01:13]} 29. Ng3 {[%clk 0:01:13]}  Kg6 {[%clk 0:01:10]} 30. Nd3 {[%clk 0:01:11]}  Qxh4 {[%clk 0:01:07]} 31. Nf4+ {[%clk 0:01:10]}  Kg7 {[%clk 0:01:06]} 32. Nxf5+ {[%clk 0:01:10]}  Bxf5 {[%clk 0:01:05]} 33. Qxf5 {[%clk 0:01:11]}  Rh8 {[%clk 0:00:44]} 34. g3 {[%clk 0:00:57]}  Qd8 {[%clk 0:00:39]} 35. e6 {[%clk 0:00:53]}  Qf6 {[%clk 0:00:36]} 36. Nxh5+ {[%clk 0:00:51]}  Rxh5 {[%clk 0:00:36]} 37. Qxh5 {[%clk 0:00:51]}  Qxe6 {[%clk 0:00:37]} 38. Qg5+ {[%clk 0:00:50]}  Kh7 {[%clk 0:00:36]} 39. Qe5 {[%clk 0:00:44]}  Nc6 {[%clk 0:00:31]} 40. Qxe6 {[%clk 0:00:41]}  fxe6 {[%clk 0:00:32]} 41. Kf1 {[%clk 0:00:42]}  Kg6 {[%clk 0:00:30]} 42. Ke2 {[%clk 0:00:42]}  b5 {[%clk 0:00:29]} 43. a5 {[%clk 0:00:41]}  Nxa5 {[%clk 0:00:28]} 44. Ra1 {[%clk 0:00:40]}  Nb3 {[%clk 0:00:28]} 45. Rxa6 {[%clk 0:00:39]}  Nxd4+ {[%clk 0:00:24]} 46. Kd3 {[%clk 0:00:39]}  Nf3 {[%clk 0:00:20]} 47. Rxe6+ {[%clk 0:00:36]}  Kf5 {[%clk 0:00:21]} 48. Rb6 {[%clk 0:00:33]}  Ke5 {[%clk 0:00:21]} 49. Rxb5 {[%clk 0:00:32]}  Ng5 {[%clk 0:00:21]} 50. Rb8 {[%clk 0:00:32]}  Ne4 {[%clk 0:00:21]} 51. Rf8 {[%clk 0:00:31]}  Ke6 {[%clk 0:00:20]} 52. Rf4 {[%clk 0:00:23]}  Nf6 {[%clk 0:00:17]} 53. Kd4 {[%clk 0:00:24]}  Ke7 {[%clk 0:00:14]} 54. Rxf6 {[%clk 0:00:21]}  Kxf6 {[%clk 0:00:12]} 55. Kxd5 {[%clk 0:00:22]}  Kf5 {[%clk 0:00:13]} 56. Kd4 {[%clk 0:00:23]}  Kf6 {[%clk 0:00:12]} 57. Ke4 {[%clk 0:00:23]}  Kg5 {[%clk 0:00:12]} 58. Ke5 {[%clk 0:00:24]}  Kg6 {[%clk 0:00:12]} 59. Kf4 {[%clk 0:00:24]}  Kh5 {[%clk 0:00:13]} 60. Kf5 {[%clk 0:00:25]}  Kh6 {[%clk 0:00:10]} 61. Kxg4 {[%clk 0:00:26]} 1-0


[Site "https://www.chess.com"]

[Event "Titled Tuesday Blitz August 22 Early 2023"]
[White "Tologon tegin, Semetei"]
[Black "Issabayev, Dias"]
[WhiteFideId "13800574"]
[BlackFideId "13703110"]
[WhiteElo "2612"]
[BlackElo "2471"]
[Result "0-1"]
[Round "7"]
[TimeControl "180+1"]
[Date "2023.08.22"]
[WhiteClock "0:00:00"]
[BlackClock "0:00:47"]
[Board "102"]

1. e4 {[%clk 0:02:56]}  c5 {[%clk 0:02:37]} 2. Nf3 {[%clk 0:02:55]}  d6 {[%clk 0:02:37]} 3. d4 {[%clk 0:02:54]}  cxd4 {[%clk 0:02:37]} 4. Nxd4 {[%clk 0:02:54]}  Nf6 {[%clk 0:02:38]} 5. Nc3 {[%clk 0:02:54]}  Bd7 {[%clk 0:02:38]} 6. Bg5 {[%clk 0:02:48]}  e6 {[%clk 0:02:38]} 7. Qd2 {[%clk 0:02:42]}  h6 {[%clk 0:02:38]} 8. Bh4 {[%clk 0:02:36]}  Nxe4 {[%clk 0:02:36]} 9. Bxd8 {[%clk 0:02:32]}  Nxd2 {[%clk 0:02:36]} 10. Kxd2 {[%clk 0:02:05]}  Kxd8 {[%clk 0:02:34]} 11. Be2 {[%clk 0:02:05]}  Nc6 {[%clk 0:02:31]} 12. Nb3 {[%clk 0:02:04]}  d5 {[%clk 0:02:27]} 13. a3 {[%clk 0:02:03]}  Rc8 {[%clk 0:02:26]} 14. Rad1 {[%clk 0:01:53]}  Ne5 {[%clk 0:02:21]} 15. Rhe1 {[%clk 0:01:52]}  Bd6 {[%clk 0:02:19]} 16. g3 {[%clk 0:01:47]}  Re8 {[%clk 0:02:17]} 17. f4 {[%clk 0:01:26]}  Nc4+ {[%clk 0:02:16]} 18. Bxc4 {[%clk 0:01:24]}  Rxc4 {[%clk 0:02:17]} 19. Kc1 {[%clk 0:01:20]}  g5 {[%clk 0:02:11]} 20. f5 {[%clk 0:01:12]}  b6 {[%clk 0:02:07]} 21. Nd4 {[%clk 0:01:04]}  Bc5 {[%clk 0:02:00]} 22. Nf3 {[%clk 0:00:59]}  Bxa3 {[%clk 0:01:47]} 23. Nxd5 {[%clk 0:00:58]}  Bxb2+ {[%clk 0:01:45]} 24. Kxb2 {[%clk 0:00:57]}  exd5 {[%clk 0:01:46]} 25. Rxe8+ {[%clk 0:00:56]}  Kxe8 {[%clk 0:01:47]} 26. Rxd5 {[%clk 0:00:56]}  Bc6 {[%clk 0:01:45]} 27. Re5+ {[%clk 0:00:55]}  Kf8 {[%clk 0:01:46]} 28. Nd2 {[%clk 0:00:52]}  Rb4+ {[%clk 0:01:46]} 29. Kc3 {[%clk 0:00:51]}  a5 {[%clk 0:01:46]} 30. Nc4 {[%clk 0:00:49]}  Kg7 {[%clk 0:01:41]} 31. Re7 {[%clk 0:00:36]}  Kf6 {[%clk 0:01:36]} 32. Rc7 {[%clk 0:00:36]}  Be4 {[%clk 0:01:30]} 33. Nd6 {[%clk 0:00:28]}  Bd5 {[%clk 0:01:24]} 34. h3 {[%clk 0:00:25]}  Rb1 {[%clk 0:01:22]} 35. g4 {[%clk 0:00:24]}  a4 {[%clk 0:01:21]} 36. Ra7 {[%clk 0:00:22]}  b5 {[%clk 0:01:12]} 37. Kd4 {[%clk 0:00:22]}  Rd1+ {[%clk 0:01:11]} 38. Kc5 {[%clk 0:00:22]}  Bg2 {[%clk 0:01:07]} 39. Rxf7+ {[%clk 0:00:18]}  Ke5 {[%clk 0:01:08]} 40. Re7+ {[%clk 0:00:18]}  Kf4 {[%clk 0:01:04]} 41. f6 {[%clk 0:00:19]}  Rd5+ {[%clk 0:01:04]} 42. Kc6 {[%clk 0:00:14]}  Rf5+ {[%clk 0:01:04]} 43. Kd7 {[%clk 0:00:07]}  Rxf6 {[%clk 0:01:04]} 44. Re2 {[%clk 0:00:02]}  Bf3 {[%clk 0:01:03]} 45. Rd2 {[%clk 0:00:01]}  a3 {[%clk 0:01:04]} 46. c3 {[%clk 0:00:02]}  Ke3 {[%clk 0:01:03]} 47. Ra2 {[%clk 0:00:02]}  Bg2 {[%clk 0:01:00]} 48. Rxa3 {[%clk 0:00:02]}  Kf4 {[%clk 0:00:58]} 49. Nxb5 {[%clk 0:00:01]}  Bxh3 {[%clk 0:00:57]} 50. Ra4+ {[%clk 0:00:02]}  Kg3 {[%clk 0:00:56]} 51. Ke7 {[%clk 0:00:03]}  Rf4 {[%clk 0:00:57]} 52. c4 {[%clk 0:00:03]}  Bxg4 {[%clk 0:00:57]} 53. Ra3+ {[%clk 0:00:03]}  Rf3 {[%clk 0:00:54]} 54. Nc3 {[%clk 0:00:04]}  Re3+ {[%clk 0:00:49]} 55. Kf6 {[%clk 0:00:03]}  Bf3 {[%clk 0:00:48]} 56. c5 {[%clk 0:00:03]}  g4 {[%clk 0:00:47]} 57. Ne4+ {[%clk 0:00:02]}  Rxe4 {[%clk 0:00:47]} 58. c6 {[%clk 0:00:00]}  Rc4 {[%clk 0:00:47]} 0-1


[Site "https://www.chess.com"]